bitfinex/quotes_ETHUSD_20241129
["timestamp","ask_amount","ask_price","bid_price","bid_amount"]
[1732906680181,2.79532,3577.4,3577.2,0.2609557]
[1732906680504,2.79532,3577.4,3577.3,0.2609557]
[1732906680806,3.0,3577.7,3577.4,0.9771]
[1732906680963,3.0,3577.7,3577.5,0.26105289]
[1732906681165,3.0,3577.9,3577.5,3.16411721]
[1732906681375,5.79493,3577.9,3577.6,0.26115115]
[1732906681579,5.79493,3577.9,3577.7,0.26115115]
[1732906681808,5.79493,3577.9,3577.8,0.26113472]
[1732906681970,5.79493,3577.9,3577.5,0.36888721]
[1732906682167,5.79493,3577.9,3577.6,0.67527096]
[1732906682394,2.79446,3578.5,3577.7,0.26114124]
[1732906682709,2.7946,3578.4,3577.8,4.64189124]
[1732906682905,0.9816,3579.1,3578.2,1.0358]
[1732906683079,2.7943,3578.8,3578.3,0.28908425]
[1732906683281,2.7943,3578.8,3578.4,0.26117284]
[1732906683611,2.7943,3578.8,3578.3,0.02794301]
[1732906683785,2.7943,3578.8,3578.4,0.6470209]
[1732906683983,2.7943,3578.8,3578.5,0.2611766]
[1732906684199,2.7943,3578.8,3578.3,0.55]
[1732906684407,2.7943,3578.8,3578.4,0.26113833]
[1732906684611,2.7943,3578.8,3578.3,0.55]
[1732906684904,2.7943,3578.8,3578.4,0.26113826]
[1732906685111,2.7943,3578.8,3578.3,3.34462]
[1732906685324,2.7943,3578.8,3578.4,0.97870399]
[1732906685516,2.79407,3579.0,3578.2,1.0358]
[1732906685819,2.79455,3578.4,3578.3,0.26112949]
[1732906686177,2.79455,3578.4,3578.2,1.0358]
[1732906686821,2.74457,3578.4,3578.2,1.0358]
[1732906687316,2.74457,3578.4,3578.3,0.26116938]
[1732906689520,2.79493,3577.9,3577.3,1.0456]
[1732906689683,2.79493,3577.9,3577.4,1.06315208]
[1732906689884,2.79493,3577.9,3577.5,0.67906103]
[1732906690083,2.79493,3577.9,3577.6,0.26117732]
[1732906690313,2.79493,3577.9,3577.7,0.26117732]
[1732906690511,2.79493,3577.9,3577.8,0.26117732]
[1732906692321,3.77163,3577.9,3577.8,0.26117732]
[1732906692479,3.77163,3577.9,3577.2,0.41788371]
[1732906692480,2.79517,3577.6,3577.2,0.41788371]
[1732906692683,2.79517,3577.6,3577.3,1.10042136]
[1732906692917,2.79517,3577.6,3577.4,0.67911799]
[1732906693097,2.79506,3577.8,3577.5,0.26123428]
[1732906693499,2.79506,3577.8,3577.6,0.26123428]
[1732906693714,2.79506,3577.8,3577.7,0.26123428]
[1732906694308,2.79501,3577.8,3577.7,0.26123428]
[1732906695619,2.79513,3577.7,3577.2,0.41788371]
[1732906695921,0.9767,3578.0,3577.3,0.67911238]
[1732906696086,2.79515,3577.7,3577.4,0.67911238]
[1732906696287,2.79515,3577.7,3577.5,0.26122867]
[1732906696507,2.79515,3577.7,3577.6,1.31422867]
[1732906697120,2.79493,3577.9,3577.6,1.31422867]
[1732906697423,2.79509,3577.7,3577.6,1.053]
[1732906697624,2.79509,3577.7,3577.6,1.31422555]
[1732906699447,2.79509,3577.7,3577.6,1.053]
[1732906699752,2.79509,3577.7,3577.6,1.31422804]
[1732906699915,2.79509,3577.7,3577.6,1.31422845]
[1732906700253,2.79509,3577.7,3577.6,0.26122845]
[1732906703006,2.79509,3577.7,3577.6,0.26123131]
[1732906703553,2.79493,3577.9,3577.6,0.26123131]
[1732906703753,3.0,3578.1,3577.4,0.02795013]
[1732906703754,5.79484,3578.1,3577.7,0.26123131]
[1732906704052,2.79496,3577.9,3577.8,0.26123131]
[1732906704360,4.0475,3578.4,3577.8,0.26123131]
[1732906704361,2.79481,3578.1,3577.8,0.26123131]
[1732906704540,5.79485,3578.0,3577.9,0.26123961]
[1732906704743,5.79471,3578.2,3578.0,0.9857]
[1732906704919,3.0,3578.2,3578.1,0.26121175]
[1732906705557,5.7947,3578.2,3578.1,0.26121175]
[1732906705712,3.0,3578.2,3578.1,0.26121175]
[1732906706156,2.79446,3578.5,3578.1,0.26121175]
[1732906706157,3.0,3578.4,3578.1,0.26121175]
[1732906706458,3.0,3578.4,3578.2,0.26121175]
[1732906706618,3.0,3578.4,3578.3,1.24691175]
[1732906707032,5.79454,3578.4,3578.3,1.24691175]
[1732906707232,5.79454,3578.4,3578.3,0.26121175]
[1732906709279,5.79454,3578.4,3578.0,0.9857]
[1732906709575,5.79454,3578.4,3578.1,0.26137943]
[1732906709744,5.79454,3578.4,3578.2,0.26137943]
[1732906710076,5.79454,3578.4,3578.3,0.26137943]
[1732906715958,2.79467,3578.3,3578.0,0.9857]
[1732906716283,2.79467,3578.3,3578.1,0.26150894]
[1732906716441,5.79467,3578.3,3578.2,0.26150894]
[1732906718420,2.79478,3578.1,3577.5,3.23118885]
[1732906718576,2.79478,3578.1,3577.6,0.69757567]
[1732906718776,2.79478,3578.1,3577.7,0.26158682]
[1732906719001,2.79478,3578.1,3577.8,0.26158682]
[1732906719205,2.79478,3578.1,3577.9,0.26158682]
[1732906719405,2.79485,3578.0,3577.9,0.26158682]
[1732906719614,2.79485,3578.0,3577.9,0.26162248]
[1732906726329,3.0,3578.3,3577.9,0.26162248]
[1732906726330,2.79479,3578.1,3577.9,0.26162248]
[1732906726634,2.79479,3578.1,3578.0,0.26162248]
[1732906726833,3.0,3578.3,3578.1,0.55]
[1732906727129,5.79456,3578.4,3578.2,0.81162248]
[1732906727301,3.0,3578.4,3578.3,0.26162248]
[1732906727502,5.79454,3578.4,3578.3,0.26162248]
[1732906728137,5.79454,3578.4,3578.3,0.21162248]
[1732906728838,5.79454,3578.4,3578.1,0.55]
[1732906730091,2.7947,3578.2,3578.1,0.55]
[1732906730336,2.7947,3578.2,3577.7,0.55]
[1732906730500,1.0119,3578.3,3577.7,0.55]
[1732906730699,2.79475,3578.2,3577.7,0.55]
[1732906731026,2.79482,3578.1,3577.7,0.98614241]
[1732906732237,3.0,3578.4,3577.9,0.55]
[1732906732406,5.79459,3578.4,3577.9,0.55]
[1732906732730,2.79476,3578.2,3577.8,0.55]
[1732906732943,2.79484,3578.1,3577.8,0.55]
[1732906733111,3.0,3578.3,3577.8,0.55]
[1732906733312,2.79475,3578.2,3577.8,0.55]
[1732906733509,2.79478,3578.1,3577.8,0.55]
[1732906734247,2.79458,3578.4,3577.7,0.55]
[1732906734413,2.79464,3578.3,3577.7,3.34507]
[1732906734613,2.7947,3578.2,3577.7,3.34507]
[1732906735238,3.0,3578.9,3578.1,0.55]
[1732906735400,2.79437,3578.7,3578.1,3.34471]
[1732906735595,2.79415,3578.9,3578.1,0.55]
[1732906735901,2.79441,3578.6,3578.1,0.55]
[1732906736204,2.79441,3578.6,3578.1,3.34476]
[1732906736404,2.79441,3578.6,3578.1,3.782476]
[1732906737057,3.0,3579.0,3578.2,0.9967]
[1732906737262,2.79412,3579.0,3578.5,0.55]
[1732906737556,2.79409,3579.0,3578.6,0.02794025]
[1732906737860,2.79401,3579.1,3578.5,0.55]
[1732906738018,2.79413,3579.0,3578.4,0.55]
[1732906738218,2.79413,3579.0,3578.5,0.0279403]
[1732906739261,2.79413,3579.0,3578.5,1.0532]
[1732906739438,2.79416,3578.9,3578.6,0.55]
[1732906740160,2.79416,3578.9,3578.7,0.26164102]
[1732906740457,2.79416,3578.9,3578.8,0.81164102]
[1732906742055,2.79416,3578.9,3578.8,0.26164102]
[1732906742250,3.80656,3578.9,3578.8,0.26164102]
[1732906742454,2.79501,3577.8,3577.2,2.79543]
[1732906742641,2.79501,3577.8,3577.3,0.559093]
[1732906743653,1.0124,3578.2,3577.4,0.52318396]
[1732906743860,2.79521,3577.6,3577.5,0.52318396]
[1732906745230,2.79521,3577.6,3577.5,1.07314677]
[1732906746169,2.79503,3577.8,3577.6,0.55]
[1732906746469,2.79527,3577.5,3577.3,0.55]
[1732906746626,2.79527,3577.5,3577.4,1.07306483]
[1732906747430,2.79527,3577.5,3577.4,0.55]
[1732906747631,2.79527,3577.5,3576.9,1.0021]
[1732906747860,2.79541,3577.3,3577.0,1.07298581]
[1732906748064,2.79541,3577.3,3577.2,0.55]
[1732906748265,2.79541,3577.3,3577.2,1.07299332]
[1732906750652,2.79541,3577.3,3577.0,0.55]
[1732906750845,2.79541,3577.3,3577.2,0.55]
[1732906751045,2.79541,3577.3,3577.0,0.55]
[1732906751248,2.79541,3577.3,3577.2,0.55]
[1732906751764,2.79541,3577.3,3577.1,0.55]
[1732906751964,2.79541,3577.3,3577.0,0.55]
[1732906752165,2.79541,3577.3,3577.2,0.55]
[1732906752556,2.79541,3577.3,3577.0,0.55]
[1732906752761,2.79541,3577.3,3577.2,0.55]
[1732906753247,2.79541,3577.3,3577.1,0.55]
[1732906753451,2.79541,3577.3,3577.1,1.07241187]
[1732906753650,2.79541,3577.3,3577.1,0.55]
[1732906753888,2.79541,3577.3,3577.1,1.07241187]
[1732906754194,2.79541,3577.3,3577.1,0.55]
[1732906754581,2.79541,3577.3,3577.0,1.07224761]
[1732906754780,2.79541,3577.3,3577.0,0.55]
[1732906755291,2.79541,3577.3,3577.0,1.07217029]
[1732906755455,2.79541,3577.3,3577.2,0.55]
[1732906755788,2.79541,3577.3,3577.1,0.52217029]
[1732906755967,2.79541,3577.3,3577.2,0.55]
[1732906756467,2.79541,3577.3,3576.9,1.0021]
[1732906756468,2.79541,3577.3,3577.1,1.07217029]
[1732906756666,2.79541,3577.3,3577.1,0.55]
[1732906756870,2.79541,3577.3,3577.1,1.07217029]
[1732906757089,1.039,3577.9,3577.1,0.55]
[1732906757272,2.79533,3577.4,3577.3,0.55]
[1732906757793,2.79533,3577.4,3577.2,0.55]
[1732906757957,2.79533,3577.4,3577.1,0.52217029]
[1732906757958,2.79533,3577.4,3577.1,0.55]
[1732906758301,2.7954,3577.3,3577.2,0.55]
[1732906758663,2.7954,3577.3,3577.1,0.55]
[1732906760763,2.7952,3577.6,3577.3,0.55]
[1732906761108,2.79538,3577.4,3577.1,0.55]
[1732906761314,2.79538,3577.4,3577.3,0.55]
[1732906761467,2.79538,3577.4,3577.3,0.41762417]
[1732906761795,2.79538,3577.4,3577.3,0.96762417]
[1732906762507,2.7953,3577.5,3577.3,0.96762417]
[1732906762802,2.7953,3577.5,3577.4,0.41762417]
[1732906766810,2.7953,3577.5,3577.4,0.4177037]
[1732906768162,2.79497,3577.9,3577.5,1.5987]
[1732906768423,3.0,3578.3,3577.6,0.4177037]
[1732906768424,2.79485,3578.0,3577.6,0.4177037]
[1732906768583,2.79508,3577.8,3577.7,0.4177037]
[1732906771103,2.79508,3577.8,3577.7,0.41813644]
[1732906771284,2.79508,3577.8,3577.7,0.94110707]
[1732906773500,2.79508,3577.8,3577.7,0.41813644]
[1732906774286,3.0,3577.7,3577.0,0.55]
[1732906774492,5.59061,3577.5,3577.1,0.52353514]
[1732906774715,5.59061,3577.5,3577.2,0.94236325]
[1732906774893,2.79532,3577.4,3577.3,1.49236325]
[1732906776040,2.79521,3577.6,3577.3,1.49236325]
[1732906776326,2.79521,3577.6,3577.4,0.94236325]
[1732906776529,2.79521,3577.6,3577.5,0.94236325]
[1732906776821,2.79512,3577.7,3577.5,0.94236325]
[1732906776987,5.79512,3577.7,3577.6,0.94236325]
[1732906777621,5.79512,3577.7,3577.6,0.94247298]
[1732906779883,2.79495,3577.9,3577.6,0.94247298]
[1732906780030,2.79495,3577.9,3577.7,0.94247298]
[1732906780235,2.79495,3577.9,3577.8,0.94247298]
[1732906780879,2.79495,3577.9,3577.8,0.52352942]
[1732906781059,2.79465,3578.3,3577.8,0.94235292]
[1732906781371,5.79482,3578.1,3577.9,0.5235294]
[1732906781673,2.79482,3578.1,3577.5,3.34524]
[1732906781990,2.79482,3578.1,3577.7,0.55]
[1732906784380,3.77551,3578.4,3577.7,3.34508]
[1732906784554,3.0,3578.3,3578.0,0.9835]
[1732906785073,2.79446,3578.5,3578.1,0.55]
[1732906785281,2.79463,3578.3,3578.1,0.55]
[1732906785579,2.79467,3578.3,3578.1,0.55]
[1732906786599,2.7947,3578.2,3578.1,0.55]
[1732906787281,2.79483,3578.1,3577.9,0.55]
[1732906787453,2.7947,3578.2,3577.9,0.55]
[1732906787661,2.7947,3578.2,3578.1,0.55]
[1732906787887,2.79481,3578.1,3577.9,0.55]
[1732906788367,2.79471,3578.2,3577.9,0.55]
[1732906789686,2.79485,3578.1,3577.9,0.55]
[1732906789877,2.79485,3578.1,3577.6,1.6036]
[1732906790200,2.79494,3577.9,3577.6,1.6036]
[1732906790397,2.79494,3577.9,3577.4,0.55]
[1732906790398,2.7951,3577.7,3577.4,0.55]
[1732906790618,2.79502,3577.8,3577.4,0.55]
[1732906790794,2.79511,3577.7,3577.4,0.55]
[1732906794108,2.79502,3577.8,3577.4,0.55]
[1732906794443,2.79467,3578.3,3577.7,0.55]
[1732906794746,2.79478,3578.1,3577.7,0.55]
[1732906794903,2.79478,3578.1,3577.6,0.55]
[1732906795100,2.79478,3578.1,3577.6,0.98595211]
[1732906795304,2.79478,3578.1,3577.6,0.55]
[1732906795501,2.7949,3578.0,3577.6,0.55]
[1732906795744,3.78485,3578.3,3577.6,0.55]
[1732906795923,2.79471,3578.2,3577.6,3.34516]
[1732906796110,2.79461,3578.4,3577.6,4.064565]
[1732906796312,3.90872258,3578.5,3577.9,0.55]
[1732906796506,2.79462,3578.3,3577.9,0.55]
[1732906796847,2.79462,3578.3,3577.7,0.55]
[1732906797254,2.7947,3578.2,3577.7,0.55]
[1732906798020,2.79478,3578.1,3577.7,0.55]
[1732906798271,2.79478,3578.1,3577.6,0.55]
[1732906800336,2.79462,3578.3,3577.6,1.269411]
[1732906800537,2.79462,3578.3,3577.8,0.55]
[1732906800738,2.79474,3578.2,3577.8,0.55]
[1732906801162,2.79474,3578.2,3577.7,0.55]
[1732906801647,2.79483,3578.1,3577.7,0.55]
[1732906801973,2.79483,3578.1,3577.6,0.55]
[1732906802131,2.79483,3578.1,3577.6,4.064579]
[1732906802326,5.5893,3578.3,3577.6,4.064579]
[1732906802565,1.11422258,3578.5,3577.7,0.26163545]
[1732906802751,2.79485,3578.0,3577.9,0.55]
[1732906802957,2.79485,3578.0,3577.9,0.26163545]
[1732906803345,2.79485,3578.0,3577.9,0.81163545]
[1732906803538,2.79485,3578.0,3577.9,0.26163545]
[1732906803773,3.75315,3578.0,3577.9,0.26163545]
[1732906804141,0.9583,3578.0,3577.3,1.0036]
[1732906804348,2.79508,3577.8,3577.4,0.55]
[1732906804573,2.79518,3577.6,3577.4,0.55]
[1732906804774,2.7953,3577.5,3577.1,1.0036]
[1732906804980,2.79541,3577.3,3577.1,1.0036]
[1732906805283,2.79541,3577.3,3577.2,0.26171987]
[1732906805879,2.79526,3577.5,3577.2,0.26171987]
[1732906806037,2.79526,3577.5,3577.3,0.26171987]
[1732906806234,2.79526,3577.5,3577.4,0.26171987]
[1732906810878,2.79537,3577.4,3577.1,1.0036]
[1732906811078,2.79537,3577.4,3577.2,0.26144026]
[1732906811281,2.79537,3577.4,3577.3,0.26144026]
[1732906811847,2.79517,3577.6,3577.3,0.26144026]
[1732906812051,2.79517,3577.6,3577.4,0.26144026]
[1732906812254,2.79517,3577.6,3577.5,0.26144026]
[1732906812490,3.0,3577.8,3577.5,0.26144026]
[1732906812789,3.0,3577.8,3577.6,0.26144026]
[1732906812987,3.0,3577.8,3577.7,0.26135484]
[1732906813567,5.79501,3577.8,3577.7,0.26135484]
[1732906814866,6.90923258,3577.8,3577.7,0.26135484]
[1732906815068,2.79536,3577.4,3577.2,0.55]
[1732906815269,2.79536,3577.4,3577.3,0.26135447]
[1732906822313,2.79519,3577.6,3577.3,0.26135447]
[1732906822462,2.79527,3577.5,3577.4,0.26135447]
[1732906824518,5.59025,3577.7,3577.4,0.26135447]
[1732906824683,3.0,3577.8,3577.5,1.27375447]
[1732906824894,5.79501,3577.8,3577.6,0.26135447]
[1732906825215,2.79501,3577.8,3577.7,0.26135447]
[1732906826878,2.79501,3577.8,3577.7,0.26144747]
[1732906829117,5.79493,3577.9,3577.7,0.26144747]
[1732906829283,5.79493,3577.9,3577.8,0.26144747]
[1732906829672,3.0,3577.9,3577.8,0.26144747]
[1732906829873,5.79493,3577.9,3577.8,0.26144747]
[1732906830508,5.79493,3577.9,3577.8,0.2615694]
[1732906834904,6.81983,3577.9,3577.8,0.2615694]
[1732906835112,1.0249,3577.8,3576.6,0.9895]
[1732906835282,2.79587,3576.7,3576.6,0.9895]
[1732906835502,2.79587,3576.7,3576.6,1.25128417]
[1732906836116,2.79572,3576.9,3576.6,1.25128417]
[1732906836323,2.79572,3576.9,3576.7,0.26178417]
[1732906836324,2.79579,3576.8,3576.7,0.26178417]
[1732906836618,0.14590415,3578.1,3576.7,0.26178417]
[1732906836619,1.0212,3577.6,3576.9,1.0341]
[1732906836777,2.79547,3577.3,3577.0,0.26178417]
[1732906837131,2.79547,3577.3,3576.9,1.0341]
[1732906837132,2.79547,3577.3,3577.1,0.26178417]
[1732906837302,2.79547,3577.3,3577.2,0.26178417]
[1732906838231,2.79519,3577.6,3577.2,0.26178417]
[1732906838532,2.79533,3577.4,3577.3,0.26178417]
[1732906838690,2.79519,3577.6,3577.4,0.9706]
[1732906838884,2.79519,3577.6,3577.5,0.26178417]
[1732906839090,5.79519,3577.6,3577.5,0.26178417]
[1732906839794,2.79508,3577.8,3577.5,0.26178417]
[1732906839998,2.79509,3577.7,3577.6,0.26178417]
[1732906840891,3.76359,3577.7,3577.6,0.26178417]
[1732906841429,6.76359,3577.7,3577.6,0.26178417]
[1732906841610,2.79591,3576.7,3576.5,1.0115]
[1732906841796,2.79591,3576.7,3576.6,0.68047432]
[1732906842800,0.9685,3577.1,3576.6,0.68047432]
[1732906843001,2.79576,3576.9,3576.7,0.68047432]
[1732906843354,2.79576,3576.9,3576.8,0.68047432]
[1732906844392,6.83406,3576.9,3576.8,0.26172089]
[1732906845139,6.83406,3576.9,3575.5,2.79679]
[1732906845140,2.79593,3576.7,3576.1,0.41858961]
[1732906845308,1.0383,3576.9,3575.7,1.0437]
[1732906845309,2.79648,3576.0,3575.7,1.0437]
[1732906845502,2.79654,3575.9,3575.8,0.67991764]
[1732906846409,2.79654,3575.9,3575.8,0.94106541]
[1732906846614,2.79635,3576.1,3575.8,0.67955863]
[1732906846808,2.79635,3576.1,3575.9,0.2613687]
[1732906846999,2.79635,3576.1,3576.0,0.67955863]
[1732906847194,2.79635,3576.1,3576.0,0.2613687]
[1732906847402,3.7591,3576.3,3576.0,0.2613687]
[1732906847597,2.79626,3576.2,3576.1,0.2613687]
[1732906847817,3.7591,3576.3,3576.1,0.2613687]
[1732906848002,6.7591,3576.3,3576.2,0.2613687]
[1732906848426,2.79653,3575.9,3575.4,0.00149434]
[1732906848652,2.79635,3576.1,3575.5,0.67900528]
[1732906848810,2.79635,3576.1,3575.6,0.67900528]
[1732906849010,2.79635,3576.1,3575.7,0.67900528]
[1732906849208,2.79635,3576.1,3575.8,0.67900528]
[1732906849410,2.79635,3576.1,3575.9,0.26105307]
[1732906849649,2.79635,3576.1,3576.0,0.26105307]
[1732906850933,4.0073,3576.6,3576.0,0.26105307]
[1732906851131,5.79599,3576.6,3576.1,0.26105307]
[1732906851353,5.79599,3576.6,3575.9,3.84625]
[1732906851354,5.79599,3576.6,3576.2,0.26105307]
[1732906851564,5.79599,3576.6,3576.3,0.26105307]
[1732906851775,5.79599,3576.6,3576.0,0.41744887]
[1732906851929,5.79599,3576.6,3576.1,0.67834851]
[1732906852123,5.79599,3576.6,3576.2,0.26089964]
[1732906852481,5.79599,3576.6,3576.3,0.26089964]
[1732906852627,3.0,3576.4,3576.0,0.4173975]
[1732906852828,3.0,3576.4,3576.1,0.2608758]
[1732906853067,3.0,3576.5,3576.2,0.2608758]
[1732906853400,3.0,3576.5,3575.9,1.0498]
[1732906853541,3.0,3576.5,3576.0,0.26084466]
[1732906853741,5.79607,3576.5,3576.1,0.26084466]
[1732906853996,2.79612,3576.4,3575.9,1.0498]
[1732906854268,3.0,3576.3,3576.0,0.26084789]
[1732906854438,5.79607,3576.5,3576.1,0.26084789]
[1732906854636,5.79607,3576.5,3575.9,1.0498]
[1732906854862,5.79607,3576.5,3576.0,0.26081359]
[1732906855040,5.79607,3576.5,3576.1,0.26081359]
[1732906855257,5.79607,3576.5,3576.2,0.26081359]
[1732906855565,5.79607,3576.5,3575.9,3.84628]
[1732906856767,3.0,3576.5,3576.0,2.79637]
[1732906857065,3.0,3576.6,3576.1,2.79628]
[1732906857479,5.79602,3576.6,3575.9,3.84628]
[1732906857641,5.79602,3576.6,3576.0,0.41730211]
[1732906857842,5.79602,3576.6,3576.0,3.21369211]
[1732906858154,5.79602,3576.6,3576.0,2.79639]
[1732906858982,3.0,3576.4,3576.0,2.79639]
[1732906859344,3.0,3576.7,3576.1,0.41742026]
[1732906859676,3.0,3576.4,3576.1,0.41742284]
[1732906859840,3.0,3576.6,3576.2,0.41741156]
[1732906860268,5.79597,3576.6,3576.2,0.41747264]
[1732906860476,3.0,3576.6,3576.0,2.7964]
[1732906860645,5.79601,3576.6,3576.1,0.4174735]
[1732906860844,5.79601,3576.6,3576.2,0.4174735]
[1732906861044,5.79601,3576.6,3576.0,2.7964]
[1732906861354,2.79603,3576.5,3576.1,0.41753602]
[1732906861561,3.0,3576.4,3576.2,0.41757473]
[1732906861783,3.0,3576.4,3576.0,2.7964]
[1732906862285,3.0,3576.4,3576.1,0.417569]
[1732906862468,3.0,3576.4,3576.2,0.417569]
[1732906862670,3.0,3576.4,3576.0,2.7964]
[1732906862848,3.0,3576.4,3576.1,0.4176743]
[1732906863049,3.0,3576.4,3576.2,0.4176743]
[1732906863261,3.0,3576.4,3576.3,0.4176743]
[1732906863474,2.79587,3576.7,3576.3,0.4176743]
[1732906863656,2.796,3576.6,3576.4,0.4176743]
[1732906863863,2.796,3576.6,3576.0,2.7964]
[1732906864181,2.79587,3576.7,3576.1,0.41779606]
[1732906864481,2.79602,3576.5,3576.2,0.41779606]
[1732906864658,2.79602,3576.5,3576.3,0.41779606]
[1732906864857,2.79602,3576.5,3576.4,0.41779606]
[1732906865066,2.79602,3576.5,3576.4,0.4179102]
[1732906865580,2.79587,3576.7,3576.4,0.37076167]
[1732906865789,2.79595,3576.6,3576.1,2.79634]
[1732906865959,1.0073,3576.9,3576.1,0.664268]
[1732906866150,3.0,3577.0,3576.5,0.9678]
[1732906866151,5.79566,3577.0,3576.5,0.9678]
[1732906866352,2.79573,3576.9,3576.5,0.9678]
[1732906866576,3.0,3576.8,3576.5,0.9678]
[1732906866889,2.7959,3576.7,3576.1,3.76412]
[1732906867385,2.7959,3576.7,3576.1,0.9678]
[1732906868499,2.79601,3576.6,3576.1,0.9678]
[1732906868652,2.7959,3576.7,3576.1,3.76414]
[1732906868998,2.79596,3576.6,3576.1,0.9678]
[1732906869378,2.79606,3576.5,3576.1,0.9678]
[1732906869567,2.79617,3576.4,3575.8,3.76604]
[1732906869768,2.79617,3576.4,3575.8,4.422316]
[1732906870563,2.79632,3576.2,3575.8,0.9695]
[1732906870868,2.79635,3576.1,3575.8,0.9695]
[1732906871568,2.79625,3576.3,3575.8,0.9695]
[1732906872592,2.79628,3576.2,3575.8,0.9695]
[1732906872956,2.79636,3576.1,3575.8,0.9695]
[1732906873154,2.79628,3576.2,3575.8,0.9695]
[1732906873361,2.79628,3576.2,3575.4,0.00149434]
[1732906873362,2.79673,3575.7,3575.4,0.00149434]
[1732906873664,2.79681,3575.5,3575.4,0.00149434]
[1732906875568,2.79681,3575.5,3575.4,0.42013564]
[1732906875913,2.79681,3575.5,3575.4,0.00149434]
[1732906876069,2.79681,3575.5,3575.4,0.42013593]
[1732906876270,2.79681,3575.5,3575.4,0.41997479]
[1732906876472,2.79681,3575.5,3575.4,0.00149434]
[1732906876678,3.0,3575.8,3575.4,0.41997185]
[1732906876865,5.79659,3575.8,3575.5,1.46967751]
[1732906877067,5.79662,3575.8,3575.6,0.41847751]
[1732906877361,5.79662,3575.8,3575.7,0.41847751]
[1732906877897,5.79662,3575.8,3575.4,0.00149434]
[1732906878120,3.0,3575.9,3575.5,3.21520379]
[1732906878258,5.79629,3576.2,3575.7,1.0261]
[1732906878460,6.80745,3576.4,3575.8,0.41839379]
[1732906878685,3.0,3576.1,3575.9,0.41839379]
[1732906878993,3.0,3576.1,3576.0,0.41839379]
[1732906879794,5.79634,3576.1,3576.0,0.41839379]
[1732906879993,3.0,3576.3,3576.0,0.41839379]
[1732906880306,5.79619,3576.3,3576.1,0.41839379]
[1732906880468,3.28645151,3576.7,3575.8,0.0279648]
[1732906880469,3.77793,3576.7,3575.8,0.0279648]
[1732906880807,3.77793,3576.7,3575.7,1.0261]
[1732906880808,3.77757,3577.1,3576.4,2.79609]
[1732906881108,2.79557,3577.1,3576.5,3.21429565]
[1732906881400,2.79542,3577.3,3576.7,2.79586]
[1732906881602,2.79542,3577.3,3576.8,0.41831565]
[1732906881805,1.059,3578.3,3576.9,1.42571565]
[1732906882016,1.059,3578.3,3577.4,2.79526]
[1732906882017,3.85369,3578.3,3577.4,2.79526]
[1732906882313,2.79483,3578.1,3577.5,0.41831565]
[1732906882483,2.79483,3578.1,3577.6,0.41831565]
[1732906882683,3.85369,3578.3,3577.7,0.41831565]
[1732906883014,2.79486,3578.0,3577.5,1.0515]
[1732906883198,3.0,3577.9,3577.6,0.4177308]
[1732906883438,3.0,3577.9,3577.5,1.0515]
[1732906883905,3.0,3577.9,3577.6,0.41749447]
[1732906884071,3.0,3577.9,3577.5,1.0515]
[1732906884072,3.0,3578.1,3577.5,1.0515]
[1732906884415,3.0,3577.9,3577.5,1.0515]
[1732906885807,2.79486,3578.0,3577.5,1.0515]
[1732906887395,2.79489,3578.0,3577.5,1.0515]
[1732906887779,2.79508,3577.8,3577.2,3.78657]
[1732906887975,2.30445151,3578.1,3577.3,0.41683333]
[1732906888207,2.79517,3577.6,3577.2,0.9911]
[1732906888417,2.30445151,3578.1,3576.7,0.9911]
[1732906888418,2.79533,3577.4,3576.7,0.9911]
[1732906888712,2.79537,3577.4,3576.8,0.41677328]
[1732906889015,2.79516,3577.6,3576.9,2.79571]
[1732906889175,2.79516,3577.6,3577.0,3.21239328]
[1732906889518,3.0,3577.7,3577.1,0.41677328]
[1732906889689,3.0,3578.0,3577.2,1.0335]
[1732906889901,5.79503,3577.8,3577.2,3.82898]
[1732906891015,5.79488,3578.0,3577.3,2.79534]
[1732906891220,3.0,3577.8,3577.3,2.79534]
[1732906892106,5.79508,3577.8,3577.2,1.0335]
[1732906892730,5.79508,3577.8,3577.3,0.41648275]
[1732906892896,5.79508,3577.8,3577.2,1.0335]
[1732906893214,2.79509,3577.7,3577.2,1.0335]
[1732906893456,3.0,3577.8,3577.2,1.0335]
[1732906893721,3.34805151,3578.1,3575.9,2.30445151]
[1732906893722,2.79534,3577.4,3576.9,1.0588]
[1732906893880,2.79534,3577.4,3577.0,0.41646291]
[1732906894089,2.79534,3577.4,3577.0,0.41644915]
[1732906894483,3.0,3578.0,3577.0,0.41644915]
[1732906894733,2.79565,3577.0,3576.6,1.018]
[1732906894936,2.79565,3577.0,3576.7,0.41644915]
[1732906895239,2.79565,3577.0,3576.6,1.018]
[1732906895837,2.79578,3576.9,3576.3,3.84396]
[1732906896038,2.79583,3576.8,3576.4,0.41648431]
[1732906896540,2.79569,3577.0,3576.4,0.41648431]
[1732906896846,1.0596,3577.4,3576.4,0.41648431]
[1732906896847,3.0,3577.1,3576.6,2.79594]
[1732906897014,3.0,3577.3,3576.9,0.9623]
[1732906897219,3.0,3577.1,3576.9,0.9623]
[1732906897625,5.79556,3577.1,3576.9,0.9623]
[1732906898302,2.79563,3577.0,3576.4,1.0354]
[1732906898614,3.0,3577.4,3576.5,0.41649423]
[1732906898813,1.0398,3577.7,3576.4,1.0354]
[1732906898814,2.79568,3577.0,3576.4,1.0354]
[1732906899018,2.79568,3577.0,3576.5,0.41648617]
[1732906900046,2.79572,3576.9,3576.5,0.41648617]
[1732906900456,2.7958,3576.8,3576.5,0.41648617]
[1732906901039,2.7958,3576.8,3576.4,1.0354]
[1732906901248,5.59165,3576.8,3576.4,1.0354]